[Event "XII Cracow ICC-B 2024"]
[Site "Krakow"]
[Date "2024.06.28"]
[Round "8.1"]
[White "Kaim, Piotr"]
[Black "Gbyl, Andrzej"]
[Result "1/2-1/2"]
[ECO "A08"]
[WhiteElo "2094"]
[BlackElo "2152"]
[Annotator "RC"]
[PlyCount "33"]
[EventDate "2024.06.20"]
[EventType "swiss"]
[EventCountry "POL"]
[SourceTitle "playchess.com"]
[Source "ChessBase"]
[SourceQuality "1"]
[TimeControl "40/5400+30:1800+30"]

1. g3 {[%emt 0:00:07]} d5 {[%emt 0:00:32]} 2. Bg2 {[%emt 0:00:32]} Nf6 {[%emt 0:00:38]} 3. Nf3 {[%emt 0:00:28]} e6 {[%emt 0:02:32]} 4. O-O {[%emt 0:00:28]} Be7 {[%emt 0:00:18]} 5. d3 {[%emt 0:00:19]} c5 {[%emt 0:00:44]} 6. Nbd2 {[%emt 0:00:11]} Nc6 {[%emt 0:00:42]} 7. e4 {[%emt 0:01:51]} O-O {[%emt 0:01:58]} 8. Re1 {[%emt 0:00:51]} b5 {[%emt 0:01:02]} 9. e5 {[%emt 0:00:57]} Nd7 {[%emt 0:00:09]} 10. Nf1 {[%emt 0:00:25]} a5 {[%emt 0:01:41]} 11. h4 {[%emt 0:00:38]} h6 {[%emt 0:00:15]} 12. Bf4 {[%emt 0:01:57]} Re8 {[%emt 0:00:14]} 13. c3 {[%emt 0:01:53]} Ba6 {[%emt 0:04:32]} 14. Ne3 {[%emt 0:05:07]} Nb6 {[%emt 0:06:31]} 15. Rc1 {[%emt 0:14:09]} Rc8 {[%emt 0:04:26]} 16. Ng4 {[%emt 0:08:21]} Bf8 {[%emt 0:00:10]} 17. Qd2 {[%emt 0:07:30]} 1/2-1/2

[Event "XII Cracow ICC-B 2024"]
[Site "Krakow"]
[Date "2024.06.28"]
[Round "8.2"]
[White "Mirowski, Przemyslaw"]
[Black "Botez, Andrea"]
[Result "0-1"]
[ECO "E62"]
[WhiteElo "1729"]
[BlackElo "1906"]
[Annotator "RC"]
[PlyCount "71"]
[EventDate "2024.06.20"]
[EventType "swiss"]
[EventCountry "POL"]
[SourceTitle "playchess.com"]
[Source "ChessBase"]
[SourceQuality "1"]
[TimeControl "40/5400+30:1800+30"]

1. d4 {[%emt 0:00:22]} Nf6 {[%emt 0:00:12]} 2. c4 {[%emt 0:00:07]} g6 {[%emt 0:00:09]} 3. g3 {[%emt 0:00:08]} Bg7 {[%emt 0:00:08]} 4. Bg2 {[%emt 0:00:09]} O-O {[%emt 0:00:15]} 5. Nc3 {[%emt 0:00:09]} d6 {[%emt 0:00:51]} 6. Nf3 {[%emt 0:00:14]} Nc6 {[%emt 0:01:43]} 7. O-O {[%emt 0:00:18]} e5 {[%emt 0:00:34]} 8. d5 {[%emt 0:07:10]} Nb8 {[%emt 0:00:40]} 9. e4 {[%emt 0:02:19]} a5 {[%emt 0:01:17]} 10. h3 {[%emt 0:02:26]} Na6 {[%emt 0:00:27]} 11. Be3 {[%emt 0:02:21]} Nd7 {[%emt 0:00:16]} 12. a3 {[%emt 0:08:09]} Nb6 {[%emt 0:12:43]} 13. Nd2 {[%emt 0:05:27]} f5 {[%emt 0:02:40]} 14. exf5 {[%emt 0:12:05]} gxf5 {[%emt 0:00:52]} 15. Qh5 {[%emt 0:06:53]} Qf6 {[%emt 0:03:24]} 16. Kh2 {[%emt 0:08:01]} Bd7 {[%emt 0:06:29]} 17. Bxb6 {[%emt 0:10:07]} cxb6 {[%emt 0:00:23]} 18. Qe2 {[%emt 0:01:07]} Rae8 {[%emt 0:03:19]} 19. Rab1 {[%emt 0:04:57]} e4 {[%emt 0:02:21]} 20. Rfc1 {[%emt 0:04:06]} Nc5 {[%emt 0:01:35]} 21. b4 {[%emt 0:01:24]} Nd3 {[%emt 0:00:10]} 22. Rc2 {[%emt 0:00:09]} a4 {[%emt 0:07:04]} 23. b5 {[%emt 0:09:45]} Nc5 {[%emt 0:09:58]} 24. Rb4 {[%emt 0:02:37]} Ra8 {[%emt 0:06:01]} 25. f3 {[%emt 0:06:07]} Qg6 {[%emt 0:05:49]} 26. f4 {[%emt 0:04:04]} Bd4 {[%emt 0:03:56]} 27. Nf1 {[%emt 0:01:37]} Qg7 {[%emt 0:04:14]} 28. Nd1 {[%emt 0:01:33]} Nb3 {[%emt 0:00:18]} 29. Nfe3 {[%emt 0:00:36]} Bc5 {[%emt 0:00:32]} 30. Qe1 {[%emt 0:00:26]} h5 {[%emt 0:03:54]} 31. h4 {[%emt 0:00:24]} Kh7 {[%emt 0:01:45]} 32. Nb2 {[%emt 0:00:42]} Nd4 {[%emt 0:04:13]} 33. Rf2 {[%emt 0:00:27]} Rg8 {[%emt 0:00:15]} 34. Nf1 {[%emt 0:00:29]} Bxb4 {[%emt 0:02:00]} 35. Qxb4 {[%emt 0:00:30]} e3 {[%emt 0:00:28]} 36. Nxe3 {[%emt 0:00:00]} 0-1

[Event "XII Cracow ICC-B 2024"]
[Site "Krakow"]
[Date "2024.06.28"]
[Round "8.3"]
[White "Wnek, Filip"]
[Black "Padalka, Artem"]
[Result "1/2-1/2"]
[ECO "B77"]
[WhiteElo "2019"]
[BlackElo "2177"]
[Annotator "RC"]
[PlyCount "172"]
[EventDate "2024.06.20"]
[EventType "swiss"]
[EventCountry "POL"]
[SourceTitle "playchess.com"]
[Source "ChessBase"]
[SourceQuality "1"]
[TimeControl "40/5400+30:1800+30"]

1. e4 {[%emt 0:00:21]} c5 {[%emt 0:08:31]} 2. Nf3 {[%emt 0:00:15]} d6 {[%emt 0:00:06]} 3. d4 {[%emt 0:00:06]} cxd4 {[%emt 0:00:03]} 4. Nxd4 {[%emt 0:00:08]} Nf6 {[%emt 0:00:02]} 5. Nc3 {[%emt 0:00:09]} g6 {[%emt 0:00:01]} 6. Be3 {[%emt 0:00:18]} Bg7 {[%emt 0:00:05]} 7. f3 {[%emt 0:00:08]} Nc6 {[%emt 0:00:04]} 8. Bc4 {[%emt 0:00:32]} O-O {[%emt 0:00:07]} 9. Qd2 {[%emt 0:00:05]} Ne5 {[%emt 0:07:30]} 10. Bb3 {[%emt 0:00:17]} Bd7 {[%emt 0:00:17]} 11. O-O-O {[%emt 0:02:01]} Rc8 {[%emt 0:00:59]} 12. Kb1 {[%emt 0:01:28]} a6 {[%emt 0:30:33]} 13. g4 {[%emt 0:00:50]} b5 {[%emt 0:10:28]} 14. g5 {[%emt 0:14:06]} Nh5 {[%emt 0:03:29]} 15. Nce2 {[%emt 0:00:30]} a5 {[%emt 0:01:09]} 16. a3 {[%emt 0:06:59]} b4 {[%emt 0:08:44]} 17. a4 {[%emt 0:30:35]} Qe8 {[%emt 0:05:09]} 18. Ng3 {[%emt 0:00:11]} Nc4 {[%emt 0:10:51]} 19. Qe2 {[%emt 0:25:19]} Nxe3 {[%emt 0:00:11]} 20. Qxe3 {[%emt 0:00:06]} Bxa4 {[%emt 0:00:36]} 21. Nxh5 {[%emt 0:02:48]} Bxd4 {[%emt 0:01:44]} 22. Rxd4 {[%emt 0:00:37]} gxh5 {[%emt 0:00:24]} 23. Rg1 {[%emt 0:01:51]} Bxb3 {[%emt 0:00:17]} 24. Qxb3 {[%emt 0:00:25]} Kh8 {[%emt 0:01:40]} 25. Rd5 {[%emt 0:03:05]} Qc6 {[%emt 0:00:35]} 26. Rg2 {[%emt 0:01:05]} Qa6 {[%emt 0:00:40]} 27. Rg1 {[%emt 0:02:29]} Rc7 {[%emt 0:04:09]} 28. Rf5 {[%emt 0:02:28]} Kg7 {[%emt 0:00:30]} 29. f4 {[%emt 0:05:14]} Qe2 {[%emt 0:02:44]} 30. Rxa5 {[%emt 0:00:31]} Qxe4 {[%emt 0:00:31]} 31. f5 {[%emt 0:00:24]} Rfc8 {[%emt 0:02:02]} 32. Rc1 {[%emt 0:00:34]} f6 {[%emt 0:01:13]} 33. gxf6+ {[%emt 0:00:26]} Kxf6 {[%emt 0:00:04]} 34. Qe6+ {[%emt 0:00:37]} Qxe6 {[%emt 0:00:06]} 35. fxe6 {[%emt 0:00:05]} Rc5 {[%emt 0:00:34]} 36. Ra7 {[%emt 0:00:09]} Kxe6 {[%emt 0:00:53]} 37. Re1+ {[%emt 0:00:04]} Re5 {[%emt 0:00:07]} 38. Rxe5+ {[%emt 0:00:05]} dxe5 {[%emt 0:00:21]} 39. Ra6+ {[%emt 0:00:09]} Kf5 {[%emt 0:00:42]} 40. Rh6 {[%emt 0:00:28]} Kg4 {[%emt 0:00:18]} 41. Re6 {[%emt 0:31:09]} Rc5 {[%emt 0:17:59]} 42. Rxe7 {[%emt 0:00:00]} Kf3 {[%emt 0:03:04]} 43. Kc1 {[%emt 0:00:00]} Ke2 {[%emt 0:03:34]} 44. b3 {[%emt 0:00:00]} Rd5 {[%emt 0:00:31]} 45. c3 {[%emt 0:00:00]} Kd3 {[%emt 0:04:36]} 46. cxb4 {[%emt 0:00:00]} e4 {[%emt 0:00:20]} 47. Kd1 {[%emt 0:00:00]} h6 {[%emt 0:02:45]} 48. Re6 {[%emt 0:00:00]} Rb5 {[%emt 0:02:37]} 49. Rd6+ {[%emt 0:00:00]} Ke3 {[%emt 0:00:17]} 50. Rxh6 {[%emt 0:00:00]} Kf2 {[%emt 0:00:39]} 51. Rf6+ {[%emt 0:00:00]} Kg2 {[%emt 0:00:15]} 52. Rf4 {[%emt 0:00:00]} Rxb4 {[%emt 0:00:38]} 53. Ke2 {[%emt 0:00:00]} Rxb3 {[%emt 0:00:10]} 54. h4 {[%emt 0:00:00]} Rh3 {[%emt 0:01:03]} 55. Rxe4 {[%emt 0:00:00]} Rh2 {[%emt 0:00:23]} 56. Ke3 {[%emt 0:00:00]} Kg3 {[%emt 0:00:01]} 57. Rb4 {[%emt 0:00:00]} Rh1 {[%emt 0:00:08]} 58. Ke2 {[%emt 0:00:02]} Ra1 {[%emt 0:00:25]} 59. Rc4 {[%emt 0:00:37]} Ra8 {[%emt 0:00:51]} 60. Re4 {[%emt 0:00:18]} Rf8 {[%emt 0:00:09]} 61. Ke3 {[%emt 0:00:35]} Rg8 {[%emt 0:00:17]} 62. Ke2 {[%emt 0:00:36]} Kh3 {[%emt 0:00:26]} 63. Kf2 {[%emt 0:00:50]} Rg2+ {[%emt 0:00:29]} 64. Kf1 {[%emt 0:00:56]} Rg6 {[%emt 0:00:41]} 65. Kf2 {[%emt 0:00:25]} Rf6+ {[%emt 0:00:33]} 66. Ke3 {[%emt 0:02:35]} Kg3 {[%emt 0:00:05]} 67. Ke2 {[%emt 0:00:32]} Rf5 {[%emt 0:00:29]} 68. Ke3 {[%emt 0:00:19]} Rf1 {[%emt 0:00:16]} 69. Ke2 {[%emt 0:00:13]} Rh1 {[%emt 0:00:09]} 70. Rc4 {[%emt 0:00:16]} Rg1 {[%emt 0:01:08]} 71. Rd4 {[%emt 0:00:31]} Ra1 {[%emt 0:01:16]} 72. Rc4 {[%emt 0:00:45]} Ra3 {[%emt 0:00:40]} 73. Rb4 {[%emt 0:00:18]} Ra7 {[%emt 0:00:18]} 74. Ke3 {[%emt 0:00:37]} Re7+ {[%emt 0:00:33]} 75. Re4 {[%emt 0:00:12]} Rg7 {[%emt 0:00:21]} 76. Rb4 {[%emt 0:00:25]} Rg8 {[%emt 0:00:47]} 77. Rc4 {[%emt 0:00:09]} Kh3 {[%emt 0:00:29]} 78. Kf3 {[%emt 0:00:35]} Rg4 {[%emt 0:00:23]} 79. Rf4 {[%emt 0:00:07]} Kxh4 {[%emt 0:00:55]} 80. Rxg4+ {[%emt 0:00:22]} hxg4+ {[%emt 0:00:00]} 81. Kg2 {[%emt 0:00:10]} g3 {[%emt 0:00:00]} 82. Kg1 {[%emt 0:00:07]} Kg5 {[%emt 0:00:04]} 83. Kg2 {[%emt 0:00:09]} Kg4 {[%emt 0:00:01]} 84. Kg1 {[%emt 0:00:17]} Kf3 {[%emt 0:00:07]} 85. Kf1 {[%emt 0:00:06]} g2+ {[%emt 0:00:04]} 86. Kg1 {[%emt 0:00:08]} Kg3 {[%emt 0:00:05]} 1/2-1/2

[Event "XII Cracow ICC-B 2024"]
[Site "Krakow"]
[Date "2024.06.28"]
[Round "8.4"]
[White "Wieczorek, Lech"]
[Black "Botez, Alexandra"]
[Result "1-0"]
[ECO "E81"]
[WhiteElo "1775"]
[BlackElo "2011"]
[Annotator "RC"]
[PlyCount "112"]
[EventDate "2024.06.20"]
[EventType "swiss"]
[EventCountry "POL"]
[SourceTitle "playchess.com"]
[Source "ChessBase"]
[SourceQuality "1"]
[TimeControl "40/5400+30:1800+30"]

1. d4 {[%emt 0:01:21]} Nf6 {[%emt 0:00:06]} 2. c4 {[%emt 0:00:11]} g6 {[%emt 0:00:05]} 3. Nc3 {[%emt 0:00:03]} Bg7 {[%emt 0:00:08]} 4. e4 {[%emt 0:00:05]} d6 {[%emt 0:00:03]} 5. f3 {[%emt 0:00:13]} O-O {[%emt 0:00:07]} 6. Be3 {[%emt 0:00:02]} Na6 {[%emt 0:02:38]} 7. Qd2 {[%emt 0:01:25]} Nd7 {[%emt 0:02:03]} 8. Nge2 {[%emt 0:02:48]} c5 {[%emt 0:09:10]} 9. Rd1 {[%emt 0:08:41]} Nb6 {[%emt 0:09:54]} 10. b3 {[%emt 0:10:45]} Bd7 {[%emt 0:03:23]} 11. dxc5 {[%emt 0:06:45]} Nxc5 {[%emt 0:01:44]} 12. Bd4 {[%emt 0:09:03]} a5 {[%emt 0:06:18]} 13. Bxg7 {[%emt 0:03:12]} Kxg7 {[%emt 0:00:06]} 14. h4 {[%emt 0:07:31]} h6 {[%emt 0:03:45]} 15. Nf4 {[%emt 0:05:40]} Be6 {[%emt 0:06:09]} 16. Be2 {[%emt 0:09:59]} Nbd7 {[%emt 0:04:44]} 17. Nfd5 {[%emt 0:03:14]} Ne5 {[%emt 0:05:40]} 18. f4 {[%emt 0:03:53]} Nc6 {[%emt 0:02:34]} 19. h5 {[%emt 0:03:18]} Rh8 {[%emt 0:00:37]} 20. O-O {[%emt 0:01:43]} Nb8 {[%emt 0:26:39]} 21. Qd4+ {[%emt 0:06:02]} f6 {[%emt 0:02:04]} 22. hxg6 {[%emt 0:01:00]} Bxd5 {[%emt 0:01:15]} 23. Qxd5 {[%emt 0:02:28]} Qg8 {[%emt 0:00:08]} 24. Bh5 {[%emt 0:04:08]} Nc6 {[%emt 0:02:39]} 25. e5 {[%emt 0:02:10]} Qxd5 {[%emt 0:00:53]} 26. exf6+ {[%emt 0:01:08]} Kxf6 {[%emt 0:01:53]} 27. Nxd5+ {[%emt 0:00:18]} Kg7 {[%emt 0:00:24]} 28. Rde1 {[%emt 0:01:51]} Rae8 {[%emt 0:00:58]} 29. Re3 {[%emt 0:01:55]} Rhf8 {[%emt 0:00:56]} 30. g3 {[%emt 0:00:37]} e6 {[%emt 0:01:38]} 31. Nc7 {[%emt 0:01:00]} Re7 {[%emt 0:00:09]} 32. Nb5 {[%emt 0:00:04]} Rd8 {[%emt 0:01:44]} 33. Rfe1 {[%emt 0:02:42]} Kf6 {[%emt 0:00:50]} 34. Bf3 {[%emt 0:00:34]} Nb4 {[%emt 0:00:18]} 35. R1e2 {[%emt 0:00:49]} Kxg6 {[%emt 0:01:21]} 36. a3 {[%emt 0:00:08]} Nba6 {[%emt 0:00:58]} 37. Nd4 {[%emt 0:00:52]} Kf6 {[%emt 0:00:33]} 38. Kg2 {[%emt 0:00:54]} Rg8 {[%emt 0:00:53]} 39. Nc2 {[%emt 0:00:48]} e5 {[%emt 0:02:43]} 40. Bd5 {[%emt 0:00:06]} Rge8 {[%emt 0:00:43]} 41. b4 {[%emt 0:04:35]} axb4 {[%emt 0:00:28]} 42. axb4 {[%emt 0:00:05]} Na4 {[%emt 0:02:08]} 43. fxe5+ {[%emt 0:02:45]} dxe5 {[%emt 0:00:14]} 44. Ra3 {[%emt 0:07:47]} Nb6 {[%emt 0:01:21]} 45. Bxb7 {[%emt 0:05:39]} Nxb4 {[%emt 0:01:59]} 46. Nxb4 {[%emt 0:00:05]} Rxb7 {[%emt 0:00:06]} 47. c5 {[%emt 0:02:09]} Nc4 {[%emt 0:01:10]} 48. Ra6+ {[%emt 0:00:22]} Kg5 {[%emt 0:01:45]} 49. Nd5 {[%emt 0:00:25]} Rb3 {[%emt 0:13:00]} 50. Ra4 {[%emt 0:03:22]} Rd8 {[%emt 0:05:35]} 51. Rxc4 {[%emt 0:06:36]} Rxd5 {[%emt 0:00:06]} 52. c6 {[%emt 0:00:09]} Rb8 {[%emt 0:00:21]} 53. c7 {[%emt 0:00:36]} Rc8 {[%emt 0:00:06]} 54. Rb2 {[%emt 0:00:55]} Rd7 {[%emt 0:00:07]} 55. Rbc2 {[%emt 0:00:40]} Rf7 {[%emt 0:00:48]} 56. Rc5 {[%emt 0:01:18]} Kg6 {[%emt 0:00:08]} 1-0

[Event "XII Cracow ICC-B 2024"]
[Site "Krakow"]
[Date "2024.06.28"]
[Round "8.5"]
[White "Pietrzak, Tomasz"]
[Black "Mytych, Rafal"]
[Result "1-0"]
[ECO "E70"]
[WhiteElo "1918"]
[BlackElo "1878"]
[Annotator "NA RC"]
[PlyCount "97"]
[EventDate "2024.06.20"]
[EventType "swiss"]
[EventCountry "POL"]
[SourceTitle "playchess.com"]
[Source "ChessBase"]
[SourceQuality "1"]
[TimeControl "40/5400+30:1800+30"]

1. d4 {[%emt 0:02:48]} Nf6 {[%emt 0:00:01]} 2. c4 {[%emt 0:00:15]} g6 {[%emt 0:00:03]} 3. Nc3 {[%emt 0:00:06]} Bg7 {[%emt 0:00:04]} 4. e4 {[%emt 0:00:04]} d6 {[%emt 0:00:03]} 5. h4 {[%emt 0:00:05]} c5 {[%emt 0:03:24]} 6. d5 {[%emt 0:01:02]} e6 {[%emt 0:00:59]} 7. Be2 {[%emt 0:01:17]} exd5 {[%emt 0:01:12]} 8. exd5 {[%emt 0:00:02]} h5 {[%emt 0:13:26]} 9. Bf4 {[%emt 0:01:24]} O-O {[%emt 0:03:48]} 10. Kf1 {[%emt 0:01:51]} Re8 {[%emt 0:04:38]} 11. f3 {[%emt 0:00:39]} a6 {[%emt 0:05:46]} 12. a4 {[%emt 0:00:34]} Qe7 {[%emt 0:08:43]} 13. Qd2 {[%emt 0:00:35]} Nbd7 {[%emt 0:01:18]} 14. Nh3 {[%emt 0:00:41]} Ne5 {[%emt 0:01:13]} 15. Nf2 {[%emt 0:03:57]} b6 {[%emt 0:11:28]} 16. g3 {[%emt 0:01:25]} Qd8 {[%emt 0:03:08]} 17. Kg2 {[%emt 0:01:25]} Bf5 {[%emt 0:00:32]} 18. Rae1 {[%emt 0:12:18]} Ra7 {[%emt 0:00:42]} 19. b3 {[%emt 0:00:57]} Kh7 {[%emt 0:11:33]} 20. Bd1 {[%emt 0:09:32]} Ra8 {[%emt 0:11:38]} 21. Bxe5 {[%emt 0:12:32]} Rxe5 {[%emt 0:00:19]} 22. Rxe5 {[%emt 0:00:06]} dxe5 {[%emt 0:00:02]} 23. g4 {[%emt 0:00:06]} Bd7 {[%emt 0:01:02]} 24. Nce4 {[%emt 0:01:22]} Nxe4 {[%emt 0:01:19]} 25. Nxe4 {[%emt 0:00:09]} hxg4 {[%emt 0:02:26]} 26. fxg4 {[%emt 0:00:57]} f5 {[%emt 0:01:31]} 27. Ng5+ {[%emt 0:00:47]} Kg8 {[%emt 0:00:19]} 28. gxf5 {[%emt 0:01:30]} gxf5 {[%emt 0:02:15]} 29. Bf3 {[%emt 0:00:38]} e4 {[%emt 0:00:30]} 30. Bh5 {[%emt 0:00:05]} Qf6 {[%emt 0:00:52]} 31. Bf7+ {[%emt 0:03:47]} Kh8 {[%emt 0:00:09]} 32. Be6 {[%emt 0:10:44]} Bxe6 {[%emt 0:01:32]} 33. dxe6 {[%emt 0:00:16]} f4 {[%emt 0:01:00]} 34. Qd5 {[%emt 0:03:30]} f3+ {[%emt 0:05:01]} 35. Kh3 {[%emt 0:00:18]} Ra7 {[%emt 0:01:03]} 36. Qxe4 {[%emt 0:02:04]} Bh6 {[%emt 0:00:22]} 37. Nf7+ {[%emt 0:00:47]} Rxf7 {[%emt 0:00:56]} 38. exf7 {[%emt 0:00:13]} Qxf7 {[%emt 0:00:27]} 39. Rf1 {[%emt 0:01:45]} f2 {[%emt 0:01:01]} 40. Kg2 {[%emt 0:00:37]} Qg8+ {[%emt 0:00:54]} 41. Kxf2 {[%emt 0:30:08]} Bg7 {[%emt 0:30:20]} 42. Qf5 {[%emt 0:02:55]} Bd4+ {[%emt 0:00:30]} 43. Kf3 {[%emt 0:00:05]} Qa8+ {[%emt 0:00:59]} 44. Kg3 {[%emt 0:00:09]} Qb8+ {[%emt 0:00:41]} 45. Kh3 {[%emt 0:00:10]} Bg7 {[%emt 0:00:26]} 46. Qh5+ {[%emt 0:01:29]} Kg8 {[%emt 0:00:02]} 47. Qf7+ {[%emt 0:00:07]} Kh8 {[%emt 0:00:09]} 48. Rg1 {[%emt 0:02:35]} a5 {[%emt 0:00:27]} 49. Qxg7# {[%emt 0:00:05]} 1-0

[Event "XII Cracow ICC-B 2024"]
[Site "Krakow"]
[Date "2024.06.28"]
[Round "8.6"]
[White "Skomial, Mateusz"]
[Black "Borowiec, Kamil"]
[Result "1-0"]
[ECO "B40"]
[WhiteElo "2083"]
[BlackElo "1835"]
[Annotator "RC"]
[PlyCount "91"]
[EventDate "2024.06.20"]
[EventType "swiss"]
[EventCountry "POL"]
[SourceTitle "playchess.com"]
[Source "ChessBase"]
[SourceQuality "1"]
[TimeControl "40/5400+30:1800+30"]

1. e4 {[%emt 0:00:03]} c5 {[%emt 0:13:57]} 2. Nf3 {[%emt 0:00:06]} e6 {[%emt 0:00:06]} 3. c4 {[%emt 0:01:13]} Nc6 {[%emt 0:00:06]} 4. Nc3 {[%emt 0:01:13]} Nd4 {[%emt 0:00:04]} 5. d3 {[%emt 0:00:43]} Ne7 {[%emt 0:00:05]} 6. g3 {[%emt 0:02:03]} Nec6 {[%emt 0:00:33]} 7. Bg2 {[%emt 0:00:19]} Be7 {[%emt 0:01:29]} 8. O-O {[%emt 0:00:48]} Rb8 {[%emt 0:04:04]} 9. Nb5 {[%emt 0:07:24]} a6 {[%emt 0:06:46]} 10. Nbxd4 {[%emt 0:03:08]} cxd4 {[%emt 0:00:19]} 11. Bf4 {[%emt 0:03:49]} d6 {[%emt 0:01:28]} 12. e5 {[%emt 0:00:10]} O-O {[%emt 0:10:06]} 13. Re1 {[%emt 0:02:47]} b5 {[%emt 0:06:35]} 14. Rc1 {[%emt 0:03:48]} b4 {[%emt 0:06:35]} 15. exd6 {[%emt 0:04:16]} Bxd6 {[%emt 0:00:06]} 16. Bxd6 {[%emt 0:00:20]} Qxd6 {[%emt 0:00:05]} 17. c5 {[%emt 0:01:32]} Qc7 {[%emt 0:02:42]} 18. Ng5 {[%emt 0:03:51]} Rb5 {[%emt 0:04:31]} 19. Qh5 {[%emt 0:03:43]} h6 {[%emt 0:00:25]} 20. Ne4 {[%emt 0:00:25]} Ra5 {[%emt 0:04:10]} 21. g4 {[%emt 0:09:41]} f5 {[%emt 0:08:56]} 22. gxf5 {[%emt 0:04:15]} Rxf5 {[%emt 0:00:36]} 23. Qe2 {[%emt 0:05:07]} Bd7 {[%emt 0:06:03]} 24. Bh3 {[%emt 0:04:24]} Rf4 {[%emt 0:05:43]} 25. Nd6 {[%emt 0:05:07]} e5 {[%emt 0:00:17]} 26. Bg2 {[%emt 0:01:09]} Bg4 {[%emt 0:02:15]} 27. Qc2 {[%emt 0:02:12]} Qd7 {[%emt 0:02:21]} 28. Re4 {[%emt 0:04:59]} Bh3 {[%emt 0:00:48]} 29. Rxf4 {[%emt 0:03:22]} exf4 {[%emt 0:00:06]} 30. Qc4+ {[%emt 0:00:44]} Kh8 {[%emt 0:04:32]} 31. Qd5 {[%emt 0:03:15]} Ne7 {[%emt 0:05:47]} 32. Qa8+ {[%emt 0:06:21]} Kh7 {[%emt 0:02:09]} 33. Qe4+ {[%emt 0:00:11]} Kg8 {[%emt 0:01:19]} 34. Qxf4 {[%emt 0:02:28]} Bxg2 {[%emt 0:00:37]} 35. Kxg2 {[%emt 0:02:08]} Nc6 {[%emt 0:01:00]} 36. Qe4 {[%emt 0:00:44]} Qd8 {[%emt 0:00:54]} 37. h4 {[%emt 0:03:11]} Qd7 {[%emt 0:00:17]} 38. f3 {[%emt 0:00:38]} Kh8 {[%emt 0:00:49]} 39. Qd5 {[%emt 0:01:08]} Qe7 {[%emt 0:00:33]} 40. Qxc6 {[%emt 0:00:52]} Qe2+ {[%emt 0:00:09]} 41. Kh1 {[%emt 0:30:08]} Rxa2 {[%emt 0:05:37]} 42. Qa8+ {[%emt 0:00:00]} Kh7 {[%emt 0:00:06]} 43. Qe4+ {[%emt 0:00:00]} Qxe4 {[%emt 0:00:07]} 44. Nxe4 {[%emt 0:00:00]} Rxb2 {[%emt 0:00:09]} 45. c6 {[%emt 0:00:00]} b3 {[%emt 0:00:19]} 46. c7 {[%emt 0:00:00]} 1-0

[Event "XII Cracow ICC-B 2024"]
[Site "Krakow"]
[Date "2024.06.28"]
[Round "8.7"]
[White "Wnuk, Piotr"]
[Black "Zieba, Hubert"]
[Result "0-1"]
[ECO "A09"]
[WhiteElo "1823"]
[BlackElo "2012"]
[Annotator "RC"]
[PlyCount "96"]
[EventDate "2024.06.20"]
[EventType "swiss"]
[EventCountry "POL"]
[SourceTitle "playchess.com"]
[Source "ChessBase"]
[SourceQuality "1"]
[TimeControl "40/5400+30:1800+30"]

1. Nf3 {[%emt 0:00:03]} d5 {[%emt 0:00:04]} 2. c4 {[%emt 0:00:03]} c6 {[%emt 0:00:06]} 3. e3 {[%emt 0:00:03]} Nf6 {[%emt 0:00:07]} 4. Nc3 {[%emt 0:00:11]} Bf5 {[%emt 0:02:02]} 5. cxd5 {[%emt 0:00:00]} cxd5 {[%emt 0:00:30]} 6. Qb3 {[%emt 0:00:28]} Bc8 {[%emt 0:00:30]} 7. Bb5+ {[%emt 0:01:02]} Nc6 {[%emt 0:01:00]} 8. e4 {[%emt 0:01:57]} e6 {[%emt 0:13:18]} 9. exd5 {[%emt 0:09:19]} exd5 {[%emt 0:01:09]} 10. d4 {[%emt 0:00:54]} a6 {[%emt 0:01:13]} 11. Bd3 {[%emt 0:03:24]} Be7 {[%emt 0:10:47]} 12. O-O {[%emt 0:05:48]} O-O {[%emt 0:00:21]} 13. Be3 {[%emt 0:08:19]} h6 {[%emt 0:01:45]} 14. Rac1 {[%emt 0:01:49]} Be6 {[%emt 0:02:13]} 15. Bb1 {[%emt 0:02:07]} Na5 {[%emt 0:05:39]} 16. Qc2 {[%emt 0:01:19]} Rc8 {[%emt 0:01:51]} 17. Ne5 {[%emt 0:10:52]} b5 {[%emt 0:00:14]} 18. a3 {[%emt 0:01:00]} Nc4 {[%emt 0:00:48]} 19. Nxc4 {[%emt 0:00:52]} Rxc4 {[%emt 0:00:18]} 20. Qd3 {[%emt 0:13:41]} Qc7 {[%emt 0:06:21]} 21. Ne2 {[%emt 0:03:37]} Rc8 {[%emt 0:01:20]} 22. Rcd1 {[%emt 0:02:55]} Bd6 {[%emt 0:01:27]} 23. g3 {[%emt 0:01:12]} Re8 {[%emt 0:03:18]} 24. Nf4 {[%emt 0:01:26]} b4 {[%emt 0:05:52]} 25. axb4 {[%emt 0:04:11]} Qb6 {[%emt 0:01:27]} 26. Nxe6 {[%emt 0:08:31]} Rxe6 {[%emt 0:00:17]} 27. Rc1 {[%emt 0:03:31]} Rxb4 {[%emt 0:01:50]} 28. Rc8+ {[%emt 0:00:29]} Bf8 {[%emt 0:00:11]} 29. Qf5 {[%emt 0:10:48]} Rxb2 {[%emt 0:01:17]} 30. Bd3 {[%emt 0:02:18]} a5 {[%emt 0:12:05]} 31. Ra1 {[%emt 0:00:32]} Qb4 {[%emt 0:02:29]} 32. Bc2 {[%emt 0:02:10]} Qb7 {[%emt 0:02:59]} 33. Rc3 {[%emt 0:00:53]} Bb4 {[%emt 0:00:21]} 34. Rb3 {[%emt 0:00:14]} Rxb3 {[%emt 0:00:06]} 35. Bxb3 {[%emt 0:00:03]} Bc3 {[%emt 0:04:37]} 36. Rb1 {[%emt 0:00:06]} Rb6 {[%emt 0:00:06]} 37. Qc2 {[%emt 0:00:25]} a4 {[%emt 0:00:08]} 38. Qxc3 {[%emt 0:01:18]} Rxb3 {[%emt 0:01:17]} 39. Rxb3 {[%emt 0:00:08]} axb3 {[%emt 0:00:14]} 40. Bc1 {[%emt 0:00:19]} Ne4 {[%emt 0:00:30]} 41. Qb2 {[%emt 0:30:46]} Nd6 {[%emt 0:31:47]} 42. Qe2 {[%emt 0:00:00]} Nc4 {[%emt 0:00:00]} 43. Qe8+ {[%emt 0:00:00]} Kh7 {[%emt 0:00:00]} 44. Qd8 {[%emt 0:00:00]} b2 {[%emt 0:00:00]} 45. Bxb2 {[%emt 0:00:00]} Nxb2 {[%emt 0:00:00]} 46. h4 {[%emt 0:00:00]} Nc4 {[%emt 0:00:00]} 47. h5 {[%emt 0:00:00]} Qb1+ {[%emt 0:00:00]} 48. Kh2 {[%emt 0:00:00]} Qf5 {[%emt 0:00:00]} 0-1